bitfinex/quotes_SOLUSD_20250802
["timestamp","ask_amount","ask_price","bid_price","bid_amount"]
[1754120258972,0.66,163.84,163.81,0.06]
[1754120259871,146.13,163.85,163.82,0.69]
[1754120260578,0.66,163.84,163.81,0.06]
[1754120261085,0.66,163.83,163.81,0.06]
[1754120261283,0.66,163.82,163.81,0.06]
[1754120262686,12.83258076,163.82,163.81,0.06]
[1754120262859,29.61726473,163.82,163.81,0.06]
[1754120263255,16.78468397,163.79,163.78,0.06]
[1754120263459,98.33726473,163.79,163.69,0.2]
[1754120263755,21.55357781,163.78,163.69,8.95368692]
[1754120264062,29.61726473,163.78,163.71,8.75368692]
[1754120264258,29.61726473,163.78,163.71,0.69]
[1754120264472,29.61726473,163.78,163.71,8.75368692]
[1754120264954,29.61726473,163.78,163.71,8.06368692]
[1754120265160,55.61726473,163.78,163.72,0.69]
[1754120265362,55.61726473,163.78,163.69,0.2]
[1754120265363,47.55357781,163.78,163.7,8.75368692]
[1754120265580,55.61726473,163.78,163.7,8.75368692]
[1754120266183,55.61726473,163.78,163.69,0.2]
[1754120266353,29.61726473,163.78,163.69,8.95368692]
[1754120266863,29.61726473,163.78,163.7,0.69]
[1754120267057,29.61726473,163.78,163.7,8.75368692]
[1754120267862,29.61726473,163.78,163.69,8.26368692]
[1754120268072,37.68095165,163.78,163.69,0.2]
[1754120268481,37.68095165,163.78,163.69,0.89]
[1754120268983,29.61726473,163.78,163.69,0.89]
[1754120269564,29.61726473,163.78,163.7,0.69]
[1754120269765,29.61726473,163.78,163.73,0.69]
[1754120270390,29.61726473,163.78,163.69,0.2]
[1754120270565,29.61726473,163.78,163.7,0.69]
[1754120270766,29.61726473,163.78,163.71,0.69]
[1754120271570,21.55357781,163.78,163.72,0.69]
[1754120271774,29.61726473,163.78,163.72,0.69]
[1754120272288,29.61726473,163.78,163.7,8.06368692]
[1754120272468,24.84837089,163.78,163.74,0.69]
[1754120272663,8.06368692,163.78,163.75,0.69]
[1754120272868,8.06368692,163.78,163.73,8.06368692]
[1754120273082,8.06368692,163.78,163.77,0.75]
[1754120273386,8.06368692,163.78,163.77,0.06]
[1754120274698,8.72368692,163.78,163.77,0.06]
[1754120274904,29.59886119,163.78,163.77,0.06]
[1754120275190,37.66254811,163.78,163.77,0.06]
[1754120275880,29.59886119,163.78,163.77,0.06]
[1754120276892,13.45587423,163.78,163.77,0.06]
[1754120277100,39.45587423,163.78,163.77,0.06]
[1754120278475,40.11587423,163.78,163.77,0.06]
[1754120279283,39.45587423,163.78,163.77,0.06]
[1754120280172,56.9005582,163.78,163.77,0.06]
[1754120280491,56.2405582,163.78,163.77,0.06]
[1754120281193,39.45587423,163.78,163.77,0.06]
[1754120281409,26.0,163.78,163.77,0.75]
[1754120281705,13.45587423,163.81,163.77,0.75]
[1754120281872,43.5,163.8,163.77,0.75]
[1754120282268,43.5,163.8,163.77,14.20587423]
[1754120282502,13.45587423,163.81,163.78,0.69]
[1754120282805,43.5,163.8,163.78,0.69]
[1754120283009,43.5,163.8,163.79,0.69]
[1754120283980,56.95587423,163.8,163.77,0.06]
[1754120284300,13.45587423,163.78,163.77,0.06]
[1754120284489,56.93587423,163.78,163.77,0.06]
[1754120284982,43.48,163.78,163.77,0.06]
[1754120285174,43.48,163.78,163.77,0.75]
[1754120287490,43.48,163.78,163.77,14.20587423]
[1754120288196,43.46,163.78,163.77,0.75]
[1754120291398,43.46,163.78,163.77,14.20587423]
[1754120291788,43.46,163.78,163.77,0.75]
[1754120293084,57.57587423,163.78,163.77,0.06]
[1754120293504,43.46,163.78,163.77,0.06]
[1754120294190,43.4,163.78,163.77,14.20587423]
[1754120295315,43.4,163.79,163.77,14.20587423]
[1754120295628,43.4,163.79,163.78,14.14587423]
[1754120295930,43.4,163.79,163.77,0.06]
[1754120296788,43.4,163.79,163.77,0.75]
[1754120297477,146.1,163.8,163.78,8.75781449]
[1754120297802,146.1,163.8,163.79,8.75781449]
[1754120298007,189.5,163.8,163.79,0.69]
[1754120298702,189.5,163.8,163.78,8.06781449]
[1754120298886,189.5,163.8,163.78,8.75781449]
[1754120300808,189.5,163.8,163.79,8.06781449]
[1754120300985,189.5,163.8,163.79,8.75781449]
[1754120301582,146.1,163.8,163.79,8.75781449]
[1754120301787,0.03,163.85,163.79,8.75781449]
[1754120302005,43.4,163.84,163.8,0.69]
[1754120302183,8.72781449,163.83,163.78,0.69]
[1754120302383,43.4,163.82,163.79,8.75781449]
[1754120306018,43.4,163.82,163.79,0.69]
[1754120306318,0.03,163.85,163.81,8.06781449]
[1754120306610,47.53408453,163.85,163.84,8.06781449]
[1754120306799,43.43,163.85,163.84,8.06781449]
[1754120307314,0.03,163.85,163.84,8.75781449]
[1754120310213,0.03,163.85,163.84,8.06781449]
[1754120311003,43.41,163.85,163.84,8.06781449]
[1754120311198,44.08,163.85,163.82,8.06781449]
[1754120311389,0.67,163.84,163.8,0.69]
[1754120311585,43.38,163.83,163.8,8.06781449]
[1754120312021,43.38,163.83,163.79,8.06781449]
[1754120312191,0.67,163.82,163.78,8.81781449]
[1754120312393,44.05,163.81,163.78,0.06]
[1754120312697,43.38,163.81,163.78,8.81781449]
[1754120313705,43.38,163.81,163.79,8.06781449]
[1754120314031,146.1,163.83,163.8,8.75781449]
[1754120314224,189.48,163.83,163.82,8.06781449]
[1754120314834,43.38,163.84,163.82,8.75781449]
[1754120315006,43.41,163.85,163.83,8.75781449]
[1754120315326,43.41,163.85,163.84,8.06781449]
[1754120316728,43.41,163.85,163.84,8.75781449]
[1754120317030,0.03,163.85,163.84,8.75781449]
[1754120319016,0.03,163.85,163.84,16.82562898]
[1754120322533,137.8432928,163.89,163.84,33.61031295]
[1754120322706,8.09781449,163.94,163.88,8.06781449]
[1754120322707,0.03,163.94,163.88,8.06781449]
[1754120323029,43.38,163.93,163.91,8.06781449]
[1754120324644,0.67,163.92,163.9,8.06781449]
[1754120324825,0.67,163.91,163.88,8.06781449]
[1754120325020,43.38,163.91,163.88,8.06781449]
[1754120325210,0.67,163.9,163.87,8.06781449]
[1754120325412,0.67,163.9,163.88,8.06781449]
[1754120325951,43.38,163.91,163.86,8.06781449]
[1754120325952,0.67,163.89,163.86,8.06781449]
[1754120326155,0.67,163.88,163.85,8.06781449]
[1754120326450,43.38,163.88,163.86,8.06781449]
[1754120327248,26.0,163.91,163.87,8.75781449]
[1754120327454,43.38,163.9,163.89,8.06781449]
[1754120328031,43.38,163.9,163.89,8.75781449]
[1754120328545,43.38,163.92,163.89,8.75781449]
[1754120328730,43.38,163.92,163.9,8.06781449]
[1754120329820,44.05,163.92,163.9,8.06781449]
[1754120330516,43.38,163.92,163.89,8.06781449]
[1754120330747,43.38,163.92,163.89,8.75781449]
[1754120331050,44.05,163.92,163.89,8.06781449]
[1754120331541,43.38,163.92,163.89,8.06781449]
[1754120331849,43.38,163.92,163.89,8.75781449]
[1754120334563,43.38,163.92,163.89,0.69]
[1754120334717,44.05,163.92,163.89,8.06781449]
[1754120335549,0.67,163.91,163.85,0.75]
[1754120335719,43.36,163.9,163.87,8.06781449]
[1754120335930,43.36,163.9,163.87,8.75781449]
[1754120336258,43.36,163.9,163.88,8.06781449]
[1754120336456,43.36,163.9,163.89,8.06781449]
[1754120336965,43.36,163.9,163.88,8.75781449]
[1754120337262,43.36,163.9,163.88,8.06781449]
[1754120337946,44.03,163.9,163.87,8.06781449]
[1754120338127,44.03,163.9,163.88,8.06781449]
[1754120338520,0.67,163.89,163.85,0.75]
[1754120338749,0.67,163.89,163.86,8.06781449]
[1754120338927,0.67,163.88,163.86,8.06781449]
[1754120340266,43.36,163.88,163.85,0.06]
[1754120340562,0.67,163.87,163.85,0.06]
[1754120341260,43.36,163.9,163.86,8.76781449]
[1754120341444,44.06,163.9,163.87,8.06781449]
[1754120341755,0.7,163.89,163.85,0.06]
[1754120341937,0.7,163.89,163.87,8.06781449]
[1754120343040,43.36,163.9,163.87,8.06781449]
[1754120343352,44.06,163.9,163.87,8.06781449]
[1754120344155,43.36,163.9,163.88,8.06781449]
[1754120344367,43.36,163.9,163.89,8.76781449]
[1754120345159,26.0,163.92,163.89,8.76781449]
[1754120345340,69.36,163.92,163.9,8.06781449]
[1754120351351,137.8732928,163.94,163.91,8.76781449]
[1754120351552,0.03,163.94,163.93,8.06781449]
[1754120351757,0.03,163.94,163.93,8.76781449]
[1754120353448,0.03,163.94,163.91,0.7]
[1754120353646,0.03,163.94,163.93,8.06781449]
[1754120353845,0.03,163.94,163.9,8.06781449]
[1754120353846,0.7,163.93,163.9,8.06781449]
[1754120354047,44.04,163.93,163.9,8.06781449]
[1754120354366,43.34,163.93,163.92,8.06781449]
[1754120354543,43.34,163.93,163.92,8.76781449]
[1754120354743,43.34,163.93,163.91,8.06781449]
[1754120354956,43.34,163.93,163.92,8.06781449]
[1754120355173,0.03,163.94,163.92,16.83562898]
[1754120355354,0.03,163.94,163.93,8.06781449]
[1754120355540,0.03,163.94,163.93,8.76781449]
[1754120355743,0.03,163.94,163.93,25.55249846]
[1754120361786,0.03,163.95,163.93,26.16251493]
[1754120362069,0.03,163.95,163.94,8.76781449]
[1754120362644,0.03,163.95,163.94,11.21168149]
[1754120362849,0.1,164.0,163.95,42.78468397]
[1754120363064,0.1,164.0,163.99,8.06781449]
[1754120363459,0.1,164.0,163.99,8.76781449]
[1754120364260,0.1,164.0,163.99,8.06781449]
[1754120364476,0.1,164.0,163.99,8.76781449]
[1754120365676,0.1,164.0,163.99,25.55249846]
[1754120366190,0.1,164.0,163.99,59.62031295]
[1754120368489,0.1,164.0,163.99,51.55249846]
[1754120369455,0.1,164.0,163.99,50.85249846]
[1754120369656,0.1,164.0,163.99,51.55249846]
[1754120369862,0.1,164.0,163.99,8.06781449]
[1754120370970,0.1,164.0,163.99,8.74781449]
[1754120371281,0.1,164.0,163.99,8.06781449]
[1754120371681,0.1,164.0,163.97,17.46468397]
[1754120371873,0.1,164.0,163.99,8.06781449]
[1754120372291,0.77,164.0,163.99,8.06781449]
[1754120373364,0.77,164.0,163.96,26.0]
[1754120373685,0.67,163.99,163.96,8.06781449]
[1754120373883,0.67,163.98,163.95,43.34]
[1754120374089,0.67,163.98,163.96,8.06781449]
[1754120374576,0.1,164.0,163.97,8.06781449]
[1754120374776,0.1,164.0,163.98,8.06781449]
[1754120375102,0.1,164.0,163.99,8.06781449]
[1754120375289,0.1,164.0,163.99,8.74781449]
[1754120376400,0.77,164.0,163.97,8.06781449]
[1754120376567,0.77,164.0,163.96,2.443718]
[1754120376568,8.83781449,164.0,163.96,10.51153249]
[1754120376768,0.67,163.99,163.95,8.06781449]
[1754120377095,8.06781449,163.98,163.94,8.06781449]
[1754120377304,0.67,163.97,163.94,8.06781449]
[1754120377605,0.1,164.0,163.96,8.06781449]
[1754120377778,0.67,163.99,163.96,8.06781449]
[1754120378161,0.67,163.98,163.96,8.06781449]
[1754120378469,0.77,164.0,163.97,8.06781449]
[1754120379500,0.1,164.0,163.98,8.06781449]
[1754120379797,0.1,164.0,163.99,8.06781449]
[1754120380096,0.1,164.0,163.99,8.74781449]
[1754120380303,0.1,164.0,163.99,25.53249846]
[1754120380468,0.1,164.0,163.99,27.97576846]
[1754120382172,0.1,164.0,163.99,25.53249846]
[1754120382388,0.1,164.0,163.99,27.97576846]
[1754120383679,0.1,164.0,163.99,36.04358295]
[1754120386179,0.1,164.0,163.99,79.34358295]
[1754120386404,0.03,164.02,164.01,42.78468397]
[1754120386698,0.03,164.02,164.01,50.85249846]
[1754120386893,0.03,164.02,164.01,51.53249846]
[1754120387101,0.03,164.02,164.01,69.85143146]
[1754120387280,0.67,164.11,164.05,26.0]
[1754120387597,0.67,164.11,164.09,8.06781449]
[1754120387977,0.67,164.1,164.09,8.06781449]
[1754120388182,0.67,164.12,164.09,8.06781449]
[1754120388387,0.67,164.11,164.09,8.06781449]
[1754120388572,42.47,164.16,164.1,8.06781449]
[1754120388773,4.96520715,164.18,164.08,8.06781449]
[1754120388774,0.1,164.17,164.15,8.06781449]
[1754120388975,0.1,164.17,164.16,8.06781449]
[1754120389707,0.1,164.17,164.16,8.74781449]
[1754120389889,0.1,164.17,164.16,8.06781449]
[1754120390413,0.1,164.17,164.13,0.68]
[1754120390615,0.1,164.17,164.14,8.06781449]
[1754120390904,0.54,164.17,164.15,8.06781449]
[1754120391208,0.54,164.17,164.14,8.06781449]
[1754120391710,0.54,164.17,164.11,44.14]
[1754120391901,0.1,164.17,164.14,8.06781449]
[1754120392102,0.1,164.17,164.15,8.06781449]
[1754120392291,0.1,164.17,164.16,8.06781449]
[1754120393789,0.1,164.17,164.14,8.06781449]
[1754120393996,0.1,164.17,164.13,8.06781449]
[1754120394309,0.1,164.17,164.14,8.06781449]
[1754120394606,0.1,164.17,164.14,8.74781449]
[1754120394911,0.1,164.17,164.14,8.06781449]
[1754120395207,0.1,164.17,164.14,8.74781449]
[1754120395409,0.1,164.17,164.15,8.74781449]
[1754120395983,0.1,164.17,164.16,8.74781449]
[1754120396207,0.1,164.17,164.16,0.68]
[1754120396399,0.1,164.17,164.16,8.74781449]
[1754120396715,0.1,164.17,164.16,13.71302149]
[1754120397484,0.1,164.17,164.16,8.06781449]
[1754120397993,0.1,164.17,164.15,8.06781449]
[1754120398197,0.1,164.17,164.16,8.06781449]
[1754120399102,0.1,164.17,164.16,8.74781449]
[1754120399596,0.1,164.17,164.16,8.06781449]
[1754120400112,0.54,164.17,164.14,8.06781449]
[1754120400413,8.06781449,164.15,164.08,0.68]
[1754120400623,8.06781449,164.12,164.07,8.06781449]
[1754120400798,8.06781449,164.12,164.08,8.06781449]
[1754120401114,8.50781449,164.12,164.08,8.06781449]
[1754120401720,26.54,164.17,164.11,8.06781449]
[1754120401901,34.60781449,164.17,164.12,8.06781449]
[1754120402500,0.1,164.17,164.13,8.06781449]
[1754120402822,0.1,164.17,164.13,8.73781449]
[1754120403005,8.60781449,164.17,164.12,8.06781449]
[1754120403327,8.60781449,164.17,164.12,8.73781449]
[1754120403495,8.16781449,164.17,164.13,8.73781449]
[1754120403696,0.1,164.17,164.15,8.06781449]
[1754120403897,0.1,164.17,164.13,8.06781449]
[1754120404222,0.1,164.17,164.15,8.06781449]
[1754120404709,0.1,164.17,164.15,8.73781449]
[1754120404911,0.1,164.17,164.15,14.051932]
[1754120405796,0.1,164.17,164.16,13.381932]
[1754120406291,0.1,164.17,164.16,14.051932]
[1754120409221,0.1,164.17,164.16,30.83661597]
[1754120409604,0.1,164.17,164.16,35.80182397]
[1754120414020,0.1,164.17,164.16,79.22182397]
[1754120416128,0.1,164.17,164.16,18.34714]
[1754120416314,0.1,164.17,164.16,13.381932]
[1754120416914,0.1,164.17,164.15,56.801932]
[1754120417325,0.1,164.17,164.16,13.381932]
[1754120417708,0.1,164.17,164.15,44.09]
[1754120417910,0.1,164.17,164.16,13.381932]
[1754120419007,0.1,164.17,164.15,56.801932]
[1754120419235,0.54,164.17,164.15,56.801932]
[1754120419621,0.1,164.17,164.15,56.801932]
[1754120419826,0.1,164.17,164.14,13.381932]
[1754120420127,0.1,164.17,164.15,13.381932]
[1754120420333,0.54,164.17,164.15,13.381932]
[1754120420915,0.54,164.17,164.13,43.42]
[1754120421241,0.1,164.17,164.13,44.09]
[1754120421911,0.1,164.17,164.15,13.381932]
[1754120422111,0.1,164.17,164.14,0.67]
[1754120422312,0.1,164.17,164.16,13.381932]
[1754120422724,0.1,164.17,164.16,14.051932]
[1754120423234,0.1,164.17,164.16,0.67]
[1754120423540,0.1,164.17,164.16,14.051932]
[1754120425011,0.1,164.17,164.16,13.381932]
[1754120425210,0.1,164.17,164.15,4.965208]
[1754120425412,0.1,164.17,164.16,13.381932]
[1754120425610,0.1,164.17,164.15,4.965208]
[1754120425611,0.1,164.17,164.13,43.42]
[1754120425842,0.54,164.17,164.14,13.381932]
[1754120426613,0.1,164.17,164.13,44.09]
[1754120426817,0.44,164.16,164.12,12.99620588]
[1754120427020,0.44,164.16,164.12,8.03099888]
[1754120427840,0.44,164.15,164.12,8.03099888]
[1754120428044,0.1,164.17,164.13,8.03099888]
[1754120428241,8.47099888,164.16,164.11,8.03099888]
[1754120428542,8.47099888,164.16,164.11,8.70099888]
[1754120428750,8.03099888,164.15,164.11,8.70099888]
[1754120428938,13.82819418,164.14,164.1,13.38819418]
[1754120429819,13.38819418,164.15,164.1,14.05819418]
[1754120430020,13.38819418,164.15,164.11,13.38819418]
[1754120430233,13.38819418,164.16,164.12,13.38819418]
[1754120430429,13.82819418,164.16,164.12,13.38819418]
[1754120430727,0.44,164.16,164.12,13.38819418]
[1754120430928,13.82819418,164.16,164.12,13.38819418]
[1754120431623,13.82819418,164.16,164.11,13.38819418]
[1754120431824,4.09961201,164.15,164.11,14.05819418]
[1754120432024,17.92780619,164.15,164.11,13.38819418]
[1754120432324,13.82819418,164.15,164.11,13.38819418]
[1754120432752,13.82819418,164.15,164.11,14.05819418]
[1754120433139,0.44,164.15,164.11,14.05819418]
[1754120433348,4.10082985,164.15,164.11,14.05819418]
[1754120433749,4.10082985,164.15,164.12,14.05819418]
[1754120434062,4.10082985,164.16,164.12,14.05819418]
[1754120435173,17.48902403,164.16,164.12,14.05819418]
[1754120435375,13.38819418,164.16,164.12,14.05819418]
[1754120436145,13.82819418,164.15,164.11,13.38819418]
[1754120436384,13.82819418,164.15,164.1,13.38819418]
[1754120436747,13.82819418,164.15,164.1,14.05819418]
[1754120436949,0.44,164.14,164.08,44.05]
[1754120437185,0.44,164.14,164.1,13.38819418]
[1754120437396,13.82819418,164.14,164.09,14.05819418]
[1754120437754,0.44,164.13,164.09,14.05819418]
[1754120438279,13.38819418,164.14,164.1,14.11819418]
[1754120438472,13.38819418,164.14,164.12,0.06]
[1754120439966,13.38819418,164.15,164.12,0.06]
[1754120440170,13.38819418,164.14,164.12,0.06]
[1754120441896,13.38819418,164.13,164.12,0.06]
[1754120442098,13.82819418,164.13,164.12,0.06]
[1754120443995,13.38819418,164.13,164.12,0.06]
[1754120444178,155.77049077,164.13,164.12,0.06]
[1754120444564,17.92719797,164.13,164.12,0.06]
[1754120444986,22.72015707,164.13,164.12,0.06]
[1754120445185,17.92719797,164.13,164.12,0.06]
[1754120446004,34.71188194,164.13,164.12,0.06]
[1754120446182,34.71188194,164.13,164.1,0.06]
[1754120446183,42.78468397,164.11,164.1,0.06]
[1754120446379,73.66007612,164.11,164.1,0.06]
[1754120446587,74.10007612,164.11,164.1,0.06]
[1754120446798,117.40007612,164.11,164.1,0.06]
[1754120447107,91.40007612,164.11,164.1,0.06]
[1754120447495,26.0,164.08,163.99,0.06]
[1754120447669,13.38819418,164.03,163.99,0.06]
[1754120447870,56.68819418,164.04,163.99,14.11819418]
[1754120448091,56.68819418,164.04,164.0,0.67]
[1754120448279,146.1,164.1,164.01,13.38819418]
[1754120448582,43.3,164.09,164.05,13.38819418]
[1754120448793,56.68819418,164.09,164.06,0.67]
[1754120448991,56.68819418,164.09,164.07,0.67]
[1754120448992,43.3,164.09,164.07,0.67]
[1754120449213,43.3,164.09,164.05,13.38819418]
[1754120449406,43.3,164.09,164.08,0.67]
[1754120450192,146.1,164.1,164.08,14.05819418]
[1754120450498,146.1,164.1,164.09,13.38819418]
[1754120450707,43.32,164.12,164.08,13.38819418]
[1754120450880,43.32,164.12,164.09,0.67]
[1754120451419,43.34,164.14,164.1,8.03539482]
[1754120451614,51.37539482,164.14,164.11,0.67]
[1754120452912,43.34,164.14,164.12,0.67]
[1754120453122,43.34,164.14,164.1,0.67]
[1754120453300,43.34,164.14,164.11,0.67]
[1754120453622,43.34,164.14,164.12,0.67]
[1754120454417,43.34,164.14,164.09,0.67]
[1754120454418,8.03539482,164.13,164.09,0.67]
[1754120454716,8.03539482,164.12,164.07,34.70539482]
[1754120454889,8.03539482,164.12,164.08,0.67]
[1754120455308,8.03539482,164.1,164.06,0.67]
[1754120455611,8.03539482,164.09,164.06,0.67]
[1754120455984,43.76,164.11,164.06,0.67]
[1754120456187,51.35539482,164.11,164.07,0.67]
[1754120456420,43.32,164.11,164.08,0.67]
[1754120456719,43.32,164.11,164.09,0.67]
[1754120457304,43.32,164.11,164.08,8.03539482]
[1754120457505,43.32,164.11,164.07,8.70539482]
[1754120457789,43.32,164.11,164.08,8.70539482]
[1754120458011,43.32,164.11,164.09,0.67]
[1754120458214,43.32,164.11,164.1,0.67]
[1754120459813,146.1,164.13,164.1,1639.875]
[1754120460111,189.4,164.13,164.11,0.67]
[1754120460319,189.4,164.13,164.12,0.67]
[1754120460684,189.4,164.13,164.1,1647.91039482]
[1754120460917,189.4,164.13,164.1,1639.875]
[1754120461510,189.43,164.13,164.11,0.67]
[1754120462415,0.03,164.13,164.12,0.67]
[1754120464436,0.03,164.13,164.1,1647.91039482]
[1754120464733,0.03,164.13,164.11,0.67]
[1754120466536,0.03,164.13,164.12,0.67]
[1754120468156,0.03,164.13,164.12,8.70539482]
[1754120470309,0.03,164.13,164.12,0.67]
[1754120472018,0.03,164.13,164.1,1647.24039482]
[1754120472347,0.03,164.13,164.11,0.67]
[1754120473018,0.03,164.13,164.11,8.03539482]
[1754120473241,0.03,164.13,164.11,0.67]
[1754120473418,0.03,164.13,164.11,8.70539482]
[1754120474218,0.03,164.13,164.11,0.67]
[1754120474917,0.03,164.13,164.12,0.67]
[1754120475232,0.03,164.13,164.12,8.70539482]
[1754120477545,0.03,164.13,164.12,25.49007879]
[1754120483024,0.03,164.13,164.11,43.28]
[1754120483330,0.03,164.13,164.12,8.03539482]
[1754120483841,0.03,164.13,164.1,1647.24039482]
[1754120484044,0.03,164.13,164.1,1690.52039482]
[1754120484239,0.03,164.13,164.11,8.03539482]
[1754120484442,0.03,164.13,164.11,8.70539482]
[1754120484647,0.03,164.13,164.12,68.77007879]
[1754120486839,0.03,164.13,164.12,34.03539482]
[1754120487053,0.03,164.13,164.12,77.98539482]
[1754120491153,0.03,164.13,164.12,94.77007879]
[1754120492146,0.03,164.13,164.12,86.73468397]
[1754120492467,0.03,164.13,164.12,94.77007879]
[1754120494161,0.03,164.13,164.12,68.77007879]
[1754120496174,0.03,164.15,164.14,26.0]
[1754120496355,0.03,164.15,164.14,77.31539482]
[1754120496555,0.03,164.15,164.14,77.98539482]
[1754120496765,0.03,164.15,164.14,94.77007879]
[1754120498856,0.03,164.15,164.14,89.77007879]
[1754120500459,0.03,164.15,164.14,94.73528579]
[1754120500661,0.03,164.15,164.14,89.77007879]
[1754120501858,0.03,164.15,164.14,8.03539482]
[1754120502061,0.03,164.15,164.14,51.29539482]
[1754120502254,0.03,164.15,164.14,43.26]
[1754120502454,0.03,164.15,164.14,51.29539482]
[1754120502695,0.03,164.15,164.14,68.75007879]
[1754120503189,0.03,164.15,164.14,76.78547361]
[1754120503972,0.03,164.15,164.14,73.71528579]
[1754120504487,0.03,164.15,164.14,87.84304079]
[1754120504697,0.03,164.17,164.16,42.07078964]
[1754120504875,0.03,164.17,164.16,85.33078964]
[1754120505191,0.03,164.17,164.16,86.00078964]
[1754120505793,0.03,164.17,164.16,102.78547361]
[1754120508509,0.03,164.17,164.16,42.78468397]
[1754120508674,0.03,164.17,164.16,51.29539482]
[1754120510395,0.03,164.17,164.16,68.75007879]
[1754120511601,0.03,164.17,164.16,68.08007879]
[1754120511802,0.03,164.17,164.16,68.75007879]
[1754120513012,0.03,164.17,164.16,68.08007879]
[1754120514873,0.03,164.17,164.16,68.75007879]
[1754120515678,4.49520715,164.18,164.16,68.75007879]
[1754120516379,4.49520715,164.18,164.17,8.03539482]
[1754120520105,4.49520715,164.18,164.17,51.27539482]
[1754120521809,4.93520715,164.18,164.15,8.03539482]
[1754120522113,4.93520715,164.18,164.17,8.03539482]
[1754120522485,4.49520715,164.18,164.17,8.03539482]
[1754120522699,4.49520715,164.18,164.15,43.24]
[1754120522903,4.49520715,164.18,164.17,8.03539482]
[1754120523302,4.49520715,164.18,164.17,51.27539482]
[1754120525915,4.49520715,164.18,164.17,43.24]
[1754120526088,4.49520715,164.18,164.17,51.27539482]
[1754120528083,4.49520715,164.18,164.17,51.95539482]
[1754120528509,4.49520715,164.18,164.17,51.27539482]
[1754120529310,4.52520715,164.18,164.17,51.27539482]
[1754120530687,4.52520715,164.18,164.17,43.24]
[1754120530930,4.52520715,164.18,164.17,51.27539482]
[1754120532112,4.52520715,164.18,164.17,51.95539482]
[1754120532619,4.52520715,164.18,164.17,51.27539482]
[1754120533621,4.52520715,164.18,164.17,51.95539482]
[1754120537324,4.52520715,164.18,164.17,68.74007879]
[1754120542131,4.52520715,164.18,164.17,68.04007879]
[1754120542445,4.52520715,164.18,164.17,68.72007879]
[1754120547418,4.52520715,164.18,164.17,68.04007879]
[1754120548718,4.52520715,164.18,164.17,68.72007879]
[1754120549844,4.52520715,164.18,164.17,76.75547379]
[1754120552344,4.52520715,164.18,164.17,76.81547379]
[1754120554351,4.52520715,164.18,164.17,68.78007897]
[1754120554529,4.52520715,164.18,164.17,76.81547379]
[1754120555355,4.52520715,164.18,164.17,76.13547379]
[1754120556230,4.52520715,164.18,164.17,8.095395]
[1754120556437,4.96520715,164.18,164.17,0.06]
[1754120557956,17.11184798,164.18,164.17,0.06]
[1754120558452,9.07645316,164.18,164.17,0.06]
[1754120558752,17.11184798,164.18,164.17,0.06]
[1754120566732,17.10512392,164.18,164.17,0.06]
[1754120568957,9.0697291,164.18,164.17,0.06]
[1754120569154,17.10512392,164.18,164.17,0.06]
[1754120569546,9.0697291,164.18,164.17,0.06]
[1754120569745,17.10512392,164.18,164.17,0.06]
[1754120571061,8.6297291,164.18,164.17,0.06]
[1754120571238,16.66512392,164.18,164.17,0.06]
[1754120571940,17.10512392,164.18,164.17,0.06]
[1754120572675,9.0697291,164.18,164.17,0.06]
[1754120572849,13.00060197,164.18,164.17,0.06]
[1754120573035,4.52520715,164.18,164.17,0.06]
[1754120573345,12.56060197,164.18,164.17,0.06]